[Event "Titled Tuesday Blitz June 20 Early 2023"]
[White "Ning, Kaiyu"]
[Black "Shuvalov, Evgenij"]
[WhiteFideId "8614750"]
[BlackFideId "4187237"]
[WhiteElo "2287"]
[BlackElo "2080"]
[Result "1-0"]
[Round "8"]
[TimeControl "180+2"]
[Date "2023.06.20"]
[WhiteClock "0:00:18"]
[BlackClock "0:00:13"]
[Board "76"]

1. e4 {[%clk 0:03:00]}  e6 {[%clk 0:02:55]} 2. d4 {[%clk 0:02:59]}  d5 {[%clk 0:02:55]} 3. e5 {[%clk 0:02:58]}  c5 {[%clk 0:02:55]} 4. c3 {[%clk 0:02:58]}  Nc6 {[%clk 0:02:55]} 5. Nf3 {[%clk 0:02:58]}  Qb6 {[%clk 0:02:56]} 6. a3 {[%clk 0:02:58]}  Bd7 {[%clk 0:02:56]} 7. b4 {[%clk 0:02:52]}  cxd4 {[%clk 0:02:54]} 8. cxd4 {[%clk 0:02:52]}  Rc8 {[%clk 0:02:54]} 9. Bb2 {[%clk 0:02:22]}  Nge7 {[%clk 0:02:53]} 10. Bd3 {[%clk 0:02:19]}  Na5 {[%clk 0:02:51]} 11. Nc3 {[%clk 0:01:40]}  Nc4 {[%clk 0:02:48]} 12. Bxc4 {[%clk 0:01:40]}  Rxc4 {[%clk 0:02:43]} 13. O-O {[%clk 0:01:40]}  Nf5 {[%clk 0:02:29]} 14. Ne2 {[%clk 0:01:38]}  a5 {[%clk 0:02:25]} 15. g4 {[%clk 0:01:26]}  Nh6 {[%clk 0:02:18]} 16. h3 {[%clk 0:01:25]}  axb4 {[%clk 0:02:16]} 17. axb4 {[%clk 0:01:24]}  Bxb4 {[%clk 0:02:15]} 18. Ra8+ {[%clk 0:01:21]}  Rc8 {[%clk 0:02:13]} 19. Rxc8+ {[%clk 0:01:21]}  Bxc8 {[%clk 0:02:14]} 20. Qa4+ {[%clk 0:01:21]}  Bd7 {[%clk 0:02:11]} 21. Qa8+ {[%clk 0:01:16]}  Qd8 {[%clk 0:02:09]} 22. Qxb7 {[%clk 0:01:15]}  Be7 {[%clk 0:02:08]} 23. Bc1 {[%clk 0:01:08]}  O-O {[%clk 0:02:05]} 24. Bxh6 {[%clk 0:01:06]}  gxh6 {[%clk 0:02:05]} 25. Nf4 {[%clk 0:01:01]}  f5 {[%clk 0:01:50]} 26. exf6 {[%clk 0:00:52]}  Bxf6 {[%clk 0:01:27]} 27. Nd3 {[%clk 0:00:52]}  Be8 {[%clk 0:01:18]} 28. Nfe5 {[%clk 0:00:47]}  Bg6 {[%clk 0:01:15]} 29. Nc5 {[%clk 0:00:36]}  Re8 {[%clk 0:00:57]} 30. Ra1 {[%clk 0:00:35]}  Bxe5 {[%clk 0:00:51]} 31. dxe5 {[%clk 0:00:33]}  Qe7 {[%clk 0:00:50]} 32. Nd7 {[%clk 0:00:24]}  Kg7 {[%clk 0:00:45]} 33. Qc6 {[%clk 0:00:25]}  Qh4 {[%clk 0:00:36]} 34. Nf6 {[%clk 0:00:24]}  Re7 {[%clk 0:00:31]} 35. Qc8 {[%clk 0:00:21]}  Bf7 {[%clk 0:00:30]} 36. Qd8 {[%clk 0:00:18]}  Qg5 {[%clk 0:00:17]} 37. Qxe7 {[%clk 0:00:17]}  Qxe5 {[%clk 0:00:17]} 38. Ne8+ {[%clk 0:00:17]}  Kg6 {[%clk 0:00:17]} 39. Rf1 {[%clk 0:00:13]}  h5 {[%clk 0:00:15]} 40. Nd6 {[%clk 0:00:13]}  Qf4 {[%clk 0:00:13]} 41. Qxf7+ {[%clk 0:00:13]}  Qxf7 {[%clk 0:00:14]} 42. Nxf7 {[%clk 0:00:13]}  Kxf7 {[%clk 0:00:15]} 43. gxh5 {[%clk 0:00:14]}  Kf6 {[%clk 0:00:15]} 44. Rd1 {[%clk 0:00:15]}  Ke5 {[%clk 0:00:15]} 45. Kf1 {[%clk 0:00:15]}  Ke4 {[%clk 0:00:16]} 46. Ke2 {[%clk 0:00:16]}  d4 {[%clk 0:00:16]} 47. Rd3 {[%clk 0:00:16]}  e5 {[%clk 0:00:16]} 48. Rf3 {[%clk 0:00:16]}  Kd5 {[%clk 0:00:15]} 49. Rf7 {[%clk 0:00:17]}  h6 {[%clk 0:00:15]} 50. Rf6 {[%clk 0:00:17]}  e4 {[%clk 0:00:15]} 51. Rxh6 {[%clk 0:00:18]}  d3+ {[%clk 0:00:13]} 52. Ke3 {[%clk 0:00:18]} 1-0


[Site "https://www.chess.com"]

[Event "Titled Tuesday Blitz June 20 Early 2023"]
[White "Vaibhav Jayant Raut"]
[Black "Czerw, Dawid"]
[WhiteFideId "5089034"]
[BlackFideId "1145746"]
[WhiteElo "2156"]
[BlackElo "2144"]
[Result "1-0"]
[Round "8"]
[TimeControl "180+2"]
[Date "2023.06.20"]
[WhiteClock "0:00:51"]
[BlackClock "0:00:00"]
[Board "77"]

1. Nf3 {[%clk 0:03:00]}  c5 {[%clk 0:02:59]} 2. g3 {[%clk 0:02:56]}  Nc6 {[%clk 0:02:59]} 3. d3 {[%clk 0:02:55]}  Nf6 {[%clk 0:02:51]} 4. Nbd2 {[%clk 0:02:55]}  g6 {[%clk 0:02:48]} 5. Bg2 {[%clk 0:02:55]}  Bg7 {[%clk 0:02:48]} 6. O-O {[%clk 0:02:56]}  d6 {[%clk 0:02:47]} 7. a4 {[%clk 0:02:57]}  O-O {[%clk 0:02:48]} 8. e4 {[%clk 0:02:58]}  a5 {[%clk 0:02:37]} 9. Re1 {[%clk 0:02:50]}  Nd7 {[%clk 0:02:33]} 10. h4 {[%clk 0:02:50]}  Nde5 {[%clk 0:02:33]} 11. h5 {[%clk 0:02:48]}  Bg4 {[%clk 0:02:30]} 12. Nc4 {[%clk 0:02:23]}  Bxh5 {[%clk 0:02:17]} 13. Ncxe5 {[%clk 0:02:18]}  Nxe5 {[%clk 0:02:16]} 14. c3 {[%clk 0:02:16]}  e6 {[%clk 0:02:05]} 15. Bf4 {[%clk 0:02:14]}  Nxf3+ {[%clk 0:01:53]} 16. Bxf3 {[%clk 0:02:12]}  Bxf3 {[%clk 0:01:54]} 17. Qxf3 {[%clk 0:02:13]}  Qd7 {[%clk 0:01:46]} 18. Kg2 {[%clk 0:02:10]}  Qc6 {[%clk 0:01:45]} 19. Rh1 {[%clk 0:02:09]}  f5 {[%clk 0:01:40]} 20. Rae1 {[%clk 0:01:49]}  e5 {[%clk 0:01:34]} 21. Bg5 {[%clk 0:01:47]}  fxe4 {[%clk 0:01:29]} 22. Qxe4 {[%clk 0:01:46]}  d5 {[%clk 0:01:24]} 23. Qh4 {[%clk 0:01:46]}  h5 {[%clk 0:01:21]} 24. g4 {[%clk 0:01:41]}  e4 {[%clk 0:01:02]} 25. gxh5 {[%clk 0:01:35]}  exd3 {[%clk 0:00:58]} 26. h6 {[%clk 0:01:29]}  d4+ {[%clk 0:00:37]} 27. Kg1 {[%clk 0:01:29]}  d2 {[%clk 0:00:33]} 28. Bxd2 {[%clk 0:01:22]}  Bf6 {[%clk 0:00:29]} 29. h7+ {[%clk 0:01:20]}  Kh8 {[%clk 0:00:28]} 30. Qg4 {[%clk 0:01:19]}  dxc3 {[%clk 0:00:23]} 31. Bxc3 {[%clk 0:01:14]}  Bxc3 {[%clk 0:00:22]} 32. bxc3 {[%clk 0:01:15]}  Qf6 {[%clk 0:00:22]} 33. Re2 {[%clk 0:01:06]}  Rae8 {[%clk 0:00:20]} 34. Rh3 {[%clk 0:01:02]}  Rxe2 {[%clk 0:00:18]} 35. Qxe2 {[%clk 0:01:03]}  Qg7 {[%clk 0:00:13]} 36. Qe6 {[%clk 0:01:01]}  Rd8 {[%clk 0:00:09]} 37. Rf3 {[%clk 0:00:56]}  Rf8 {[%clk 0:00:03]} 38. Rg3 {[%clk 0:00:53]}  Qxh7 {[%clk 0:00:02]} 39. Rh3 {[%clk 0:00:52]}  Rf7 {[%clk 0:00:00]} 40. Rxh7+ {[%clk 0:00:51]} 1-0


[Site "https://www.chess.com"]

[Event "Titled Tuesday Blitz June 20 Early 2023"]
[White "Heinemann, Josefine"]
[Black "Martic, Ivan"]
[WhiteFideId "12900460"]
[BlackFideId "929301"]
[WhiteElo "2342"]
[BlackElo "2346"]
[Result "0-1"]
[Round "8"]
[TimeControl "180+2"]
[Date "2023.06.20"]
[WhiteClock "0:00:05"]
[BlackClock "0:00:32"]
[Board "78"]

1. d4 {[%clk 0:03:00]}  d5 {[%clk 0:02:46]} 2. c4 {[%clk 0:02:59]}  c6 {[%clk 0:02:46]} 3. Nf3 {[%clk 0:02:58]}  Nf6 {[%clk 0:02:47]} 4. e3 {[%clk 0:02:57]}  Bf5 {[%clk 0:02:45]} 5. Nc3 {[%clk 0:02:55]}  e6 {[%clk 0:02:45]} 6. Qb3 {[%clk 0:02:50]}  Qb6 {[%clk 0:02:40]} 7. Bd2 {[%clk 0:02:38]}  h6 {[%clk 0:02:38]} 8. Be2 {[%clk 0:02:28]}  Nbd7 {[%clk 0:02:28]} 9. O-O {[%clk 0:02:21]}  Be7 {[%clk 0:02:27]} 10. Rfc1 {[%clk 0:02:20]}  O-O {[%clk 0:02:27]} 11. cxd5 {[%clk 0:02:08]}  exd5 {[%clk 0:02:24]} 12. Na4 {[%clk 0:02:07]}  Qxb3 {[%clk 0:02:24]} 13. axb3 {[%clk 0:02:05]}  Ne4 {[%clk 0:02:24]} 14. Be1 {[%clk 0:02:04]}  Rfe8 {[%clk 0:02:12]} 15. b4 {[%clk 0:02:02]}  a6 {[%clk 0:01:57]} 16. Nc5 {[%clk 0:01:56]}  Rab8 {[%clk 0:01:50]} 17. h3 {[%clk 0:01:52]}  Bd6 {[%clk 0:01:46]} 18. g4 {[%clk 0:01:49]}  Be6 {[%clk 0:01:33]} 19. Nd2 {[%clk 0:01:49]}  Nef6 {[%clk 0:01:24]} 20. Nxe6 {[%clk 0:01:42]}  Rxe6 {[%clk 0:01:24]} 21. Nb3 {[%clk 0:01:41]}  Ne4 {[%clk 0:01:17]} 22. Nc5 {[%clk 0:01:39]}  Ndxc5 {[%clk 0:01:17]} 23. bxc5 {[%clk 0:01:37]}  Bc7 {[%clk 0:01:17]} 24. b4 {[%clk 0:01:35]}  Rbe8 {[%clk 0:01:14]} 25. Kg2 {[%clk 0:01:33]}  Ng5 {[%clk 0:01:07]} 26. h4 {[%clk 0:01:22]}  Ne4 {[%clk 0:01:06]} 27. f3 {[%clk 0:01:19]}  Nf6 {[%clk 0:01:05]} 28. Bf2 {[%clk 0:01:19]}  Bf4 {[%clk 0:01:04]} 29. exf4 {[%clk 0:01:01]}  Rxe2 {[%clk 0:01:05]} 30. Kf1 {[%clk 0:01:01]}  h5 {[%clk 0:01:02]} 31. g5 {[%clk 0:00:59]}  Nd7 {[%clk 0:00:54]} 32. f5 {[%clk 0:00:38]}  g6 {[%clk 0:00:52]} 33. f6 {[%clk 0:00:35]}  R8e6 {[%clk 0:00:52]} 34. Re1 {[%clk 0:00:34]}  Rxe1+ {[%clk 0:00:51]} 35. Rxe1 {[%clk 0:00:35]}  Rxe1+ {[%clk 0:00:48]} 36. Kxe1 {[%clk 0:00:36]}  Nf8 {[%clk 0:00:46]} 37. Ke2 {[%clk 0:00:34]}  Ne6 {[%clk 0:00:45]} 38. Be3 {[%clk 0:00:30]}  Kf8 {[%clk 0:00:45]} 39. Kd3 {[%clk 0:00:28]}  Ke8 {[%clk 0:00:46]} 40. Bd2 {[%clk 0:00:29]}  Kd7 {[%clk 0:00:46]} 41. Ke3 {[%clk 0:00:29]}  Kc7 {[%clk 0:00:46]} 42. Be1 {[%clk 0:00:28]}  b6 {[%clk 0:00:46]} 43. Bg3+ {[%clk 0:00:28]}  Kb7 {[%clk 0:00:46]} 44. Bd6 {[%clk 0:00:28]}  a5 {[%clk 0:00:42]} 45. cxb6 {[%clk 0:00:18]}  a4 {[%clk 0:00:42]} 46. Kd3 {[%clk 0:00:18]}  a3 {[%clk 0:00:39]} 47. Kc3 {[%clk 0:00:17]}  Nxd4 {[%clk 0:00:38]} 48. Bc5 {[%clk 0:00:12]}  Nxf3 {[%clk 0:00:36]} 49. Bf2 {[%clk 0:00:12]}  d4+ {[%clk 0:00:32]} 50. Kb3 {[%clk 0:00:05]}  d3 {[%clk 0:00:32]} 0-1


[Site "https://www.chess.com"]

[Event "Titled Tuesday Blitz June 20 Early 2023"]
[White "Savitha Shri B"]
[Black "Sadykov, Ramil"]
[WhiteFideId "35061887"]
[BlackFideId "24113590"]
[WhiteElo "2172"]
[BlackElo "2245"]
[Result "0-1"]
[Round "8"]
[TimeControl "180+2"]
[Date "2023.06.20"]
[WhiteClock "0:00:05"]
[BlackClock "0:00:24"]
[Board "79"]

1. e4 {[%clk 0:03:00]}  c5 {[%clk 0:03:00]} 2. Nf3 {[%clk 0:03:00]}  e6 {[%clk 0:03:00]} 3. d4 {[%clk 0:03:00]}  cxd4 {[%clk 0:03:01]} 4. Nxd4 {[%clk 0:03:00]}  Nf6 {[%clk 0:03:02]} 5. Nc3 {[%clk 0:03:00]}  Bb4 {[%clk 0:03:02]} 6. e5 {[%clk 0:02:57]}  Nd5 {[%clk 0:03:02]} 7. Bd2 {[%clk 0:02:51]}  Bxc3 {[%clk 0:03:03]} 8. bxc3 {[%clk 0:02:51]}  O-O {[%clk 0:03:03]} 9. c4 {[%clk 0:02:39]}  Ne7 {[%clk 0:02:56]} 10. Bd3 {[%clk 0:02:27]}  d6 {[%clk 0:02:44]} 11. exd6 {[%clk 0:01:35]}  Qxd6 {[%clk 0:02:43]} 12. Qh5 {[%clk 0:01:35]}  Ng6 {[%clk 0:02:40]} 13. Nb5 {[%clk 0:01:35]}  Qe7 {[%clk 0:02:32]} 14. O-O {[%clk 0:01:33]}  Nc6 {[%clk 0:02:27]} 15. Bg5 {[%clk 0:01:29]}  f6 {[%clk 0:02:26]} 16. Be3 {[%clk 0:01:25]}  e5 {[%clk 0:02:16]} 17. Bxg6 {[%clk 0:01:23]}  hxg6 {[%clk 0:02:17]} 18. Qxg6 {[%clk 0:01:23]}  Be6 {[%clk 0:02:11]} 19. c5 {[%clk 0:01:17]}  Bc4 {[%clk 0:01:23]} 20. Rfb1 {[%clk 0:01:12]}  Bxb5 {[%clk 0:01:22]} 21. Rxb5 {[%clk 0:01:11]}  Rad8 {[%clk 0:01:23]} 22. Rab1 {[%clk 0:01:11]}  Rd7 {[%clk 0:01:21]} 23. h4 {[%clk 0:01:11]}  Qf7 {[%clk 0:01:16]} 24. Qxf7+ {[%clk 0:01:08]}  Rfxf7 {[%clk 0:01:17]} 25. g4 {[%clk 0:01:06]}  Kf8 {[%clk 0:01:01]} 26. Kg2 {[%clk 0:01:06]}  Ke8 {[%clk 0:01:00]} 27. c3 {[%clk 0:01:04]}  Kd8 {[%clk 0:00:59]} 28. Kf3 {[%clk 0:01:04]}  Kc8 {[%clk 0:00:57]} 29. Ke4 {[%clk 0:01:05]}  g6 {[%clk 0:00:57]} 30. f4 {[%clk 0:00:40]}  f5+ {[%clk 0:00:51]} 31. gxf5 {[%clk 0:00:39]}  gxf5+ {[%clk 0:00:52]} 32. Kf3 {[%clk 0:00:40]}  Rd3 {[%clk 0:00:51]} 33. Ke2 {[%clk 0:00:33]}  Rxc3 {[%clk 0:00:51]} 34. fxe5 {[%clk 0:00:33]}  f4 {[%clk 0:00:51]} 35. Bd2 {[%clk 0:00:32]}  Nd4+ {[%clk 0:00:46]} 36. Ke1 {[%clk 0:00:21]}  Nxb5 {[%clk 0:00:45]} 37. Rxb5 {[%clk 0:00:19]}  Rh3 {[%clk 0:00:43]} 38. Ra5 {[%clk 0:00:19]}  f3 {[%clk 0:00:41]} 39. Be3 {[%clk 0:00:18]}  Rxh4 {[%clk 0:00:38]} 40. Rxa7 {[%clk 0:00:17]}  Re4 {[%clk 0:00:38]} 41. Kf2 {[%clk 0:00:17]}  Rxe3 {[%clk 0:00:37]} 42. Ra8+ {[%clk 0:00:17]}  Kc7 {[%clk 0:00:36]} 43. Kxe3 {[%clk 0:00:14]}  f2 {[%clk 0:00:36]} 44. e6 {[%clk 0:00:14]}  f1=Q {[%clk 0:00:31]} 45. exf7 {[%clk 0:00:15]}  Qxf7 {[%clk 0:00:31]} 46. Kd4 {[%clk 0:00:16]}  Qf4+ {[%clk 0:00:28]} 47. Kc3 {[%clk 0:00:16]}  Kc6 {[%clk 0:00:27]} 48. Rc8+ {[%clk 0:00:15]}  Kb5 {[%clk 0:00:27]} 49. Ra8 {[%clk 0:00:11]}  Qe3+ {[%clk 0:00:25]} 50. Kb2 {[%clk 0:00:12]}  Kb4 {[%clk 0:00:25]} 51. Rb8 {[%clk 0:00:09]}  Qd2+ {[%clk 0:00:24]} 52. Kb1 {[%clk 0:00:05]}  Kc3 {[%clk 0:00:24]} 0-1


[Site "https://www.chess.com"]

[Event "Titled Tuesday Blitz June 20 Early 2023"]
[White "Ansh M Shah"]
[Black "djokovic74"]
[WhiteFideId "25033379"]
[WhiteElo "2084"]
[BlackElo "2635"]
[Result "0-1"]
[Round "8"]
[TimeControl "180+2"]
[Date "2023.06.20"]
[WhiteClock "0:02:33"]
[BlackClock "0:02:42"]
[Board "80"]

1. d4 {[%clk 0:03:00]}  e6 {[%clk 0:03:00]} 2. c4 {[%clk 0:03:01]}  Nf6 {[%clk 0:03:01]} 3. g3 {[%clk 0:03:01]}  d5 {[%clk 0:03:01]} 4. Bg2 {[%clk 0:03:02]}  Be7 {[%clk 0:03:01]} 5. Nf3 {[%clk 0:03:03]}  O-O {[%clk 0:03:01]} 6. O-O {[%clk 0:03:03]}  c6 {[%clk 0:03:02]} 7. Qc2 {[%clk 0:03:04]}  b6 {[%clk 0:03:02]} 8. Nbd2 {[%clk 0:03:04]}  Bb7 {[%clk 0:03:02]} 9. e4 {[%clk 0:03:05]}  Na6 {[%clk 0:03:03]} 10. a3 {[%clk 0:03:04]}  c5 {[%clk 0:03:03]} 11. exd5 {[%clk 0:02:58]}  exd5 {[%clk 0:03:03]} 12. dxc5 {[%clk 0:02:58]}  Nxc5 {[%clk 0:03:03]} 13. b4 {[%clk 0:02:59]}  Ne6 {[%clk 0:03:04]} 14. Bb2 {[%clk 0:02:58]}  Rc8 {[%clk 0:03:02]} 15. Rac1 {[%clk 0:02:53]}  dxc4 {[%clk 0:02:59]} 16. Qa4 {[%clk 0:02:51]}  a6 {[%clk 0:02:49]} 17. b5 {[%clk 0:02:47]}  axb5 {[%clk 0:02:48]} 18. Qxb5 {[%clk 0:02:48]}  Rc5 {[%clk 0:02:47]} 19. Qb4 {[%clk 0:02:46]}  Nd5 {[%clk 0:02:44]} 20. Qa4 {[%clk 0:02:33]}  c3 {[%clk 0:02:42]} 0-1


[Site "https://www.chess.com"]

[Event "Titled Tuesday Blitz June 20 Early 2023"]
[White "Topalov, Aleksandar"]
[Black "ArtemDyachuk"]
[WhiteFideId "925659"]
[WhiteElo "2151"]
[BlackElo "2620"]
[Result "1-0"]
[Round "8"]
[TimeControl "180+2"]
[Date "2023.06.20"]
[WhiteClock "0:00:12"]
[BlackClock "0:00:14"]
[Board "82"]

1. b3 {[%clk 0:02:40]}  e5 {[%clk 0:02:58]} 2. Bb2 {[%clk 0:02:39]}  Nc6 {[%clk 0:02:56]} 3. c4 {[%clk 0:02:40]}  Nf6 {[%clk 0:02:54]} 4. e3 {[%clk 0:02:40]}  d6 {[%clk 0:02:41]} 5. Nf3 {[%clk 0:02:37]}  e4 {[%clk 0:02:36]} 6. Nd4 {[%clk 0:02:34]}  Ne5 {[%clk 0:02:32]} 7. Be2 {[%clk 0:02:34]}  c5 {[%clk 0:02:25]} 8. Nb5 {[%clk 0:02:25]}  a6 {[%clk 0:02:14]} 9. N5c3 {[%clk 0:02:24]}  Bf5 {[%clk 0:02:06]} 10. h3 {[%clk 0:02:15]}  Qd7 {[%clk 0:02:05]} 11. g4 {[%clk 0:02:11]}  Bg6 {[%clk 0:02:02]} 12. g5 {[%clk 0:02:10]}  Ng8 {[%clk 0:01:59]} 13. Nd5 {[%clk 0:02:09]}  Ne7 {[%clk 0:01:51]} 14. Nb6 {[%clk 0:02:07]}  Qd8 {[%clk 0:01:35]} 15. Nxa8 {[%clk 0:02:07]}  Qxa8 {[%clk 0:01:36]} 16. Bxe5 {[%clk 0:01:45]}  dxe5 {[%clk 0:01:34]} 17. Nc3 {[%clk 0:01:43]}  Qd8 {[%clk 0:01:28]} 18. h4 {[%clk 0:01:39]}  h6 {[%clk 0:01:22]} 19. gxh6 {[%clk 0:01:30]}  Rxh6 {[%clk 0:01:21]} 20. h5 {[%clk 0:01:28]}  Bh7 {[%clk 0:01:20]} 21. Qc2 {[%clk 0:01:26]}  f5 {[%clk 0:01:04]} 22. O-O-O {[%clk 0:01:24]}  Nc6 {[%clk 0:01:00]} 23. Nd5 {[%clk 0:01:23]}  Nb4 {[%clk 0:00:49]} 24. Nxb4 {[%clk 0:01:22]}  cxb4 {[%clk 0:00:50]} 25. d3 {[%clk 0:01:22]}  Qa5 {[%clk 0:00:41]} 26. dxe4 {[%clk 0:01:21]}  fxe4 {[%clk 0:00:40]} 27. Kb1 {[%clk 0:01:20]}  Bc5 {[%clk 0:00:38]} 28. Rd5 {[%clk 0:01:17]}  Qc7 {[%clk 0:00:32]} 29. Bg4 {[%clk 0:01:11]}  Bg8 {[%clk 0:00:30]} 30. Rd7 {[%clk 0:01:05]}  Qxd7 {[%clk 0:00:30]} 31. Bxd7+ {[%clk 0:01:04]}  Kxd7 {[%clk 0:00:31]} 32. Rg1 {[%clk 0:00:59]}  Bf8 {[%clk 0:00:24]} 33. Kb2 {[%clk 0:00:42]}  Bh7 {[%clk 0:00:23]} 34. c5 {[%clk 0:00:35]}  Rc6 {[%clk 0:00:18]} 35. Qc4 {[%clk 0:00:34]}  Ke8 {[%clk 0:00:15]} 36. Qxb4 {[%clk 0:00:25]}  b5 {[%clk 0:00:15]} 37. Rd1 {[%clk 0:00:19]}  Bxc5 {[%clk 0:00:14]} 38. Qd2 {[%clk 0:00:19]}  Bf5 {[%clk 0:00:12]} 39. Qd8+ {[%clk 0:00:18]}  Kf7 {[%clk 0:00:12]} 40. Rd7+ {[%clk 0:00:18]}  Ke6 {[%clk 0:00:12]} 41. Qe8+ {[%clk 0:00:17]}  Kf6 {[%clk 0:00:12]} 42. Rf7+ {[%clk 0:00:16]}  Kg5 {[%clk 0:00:13]} 43. Qxc6 {[%clk 0:00:16]}  Bb4 {[%clk 0:00:13]} 44. Qc7 {[%clk 0:00:13]}  Bg4 {[%clk 0:00:12]} 45. Rxg7+ {[%clk 0:00:13]}  Kh4 {[%clk 0:00:11]} 46. Rxg4+ {[%clk 0:00:13]}  Kxg4 {[%clk 0:00:10]} 47. h6 {[%clk 0:00:14]}  a5 {[%clk 0:00:10]} 48. h7 {[%clk 0:00:14]}  a4 {[%clk 0:00:11]} 49. bxa4 {[%clk 0:00:14]}  Kf3 {[%clk 0:00:11]} 50. h8=Q {[%clk 0:00:14]}  Ke2 {[%clk 0:00:12]} 51. Qhxe5 {[%clk 0:00:13]}  Be1 {[%clk 0:00:13]} 52. Qxe4 {[%clk 0:00:12]}  Kf1 {[%clk 0:00:14]} 53. Qd3+ {[%clk 0:00:12]}  Kg1 {[%clk 0:00:14]} 54. Qg3+ {[%clk 0:00:12]}  Kh1 {[%clk 0:00:14]} 55. Qh7# {[%clk 0:00:12]} 1-0


[Site "https://www.chess.com"]

[Event "Titled Tuesday Blitz June 20 Early 2023"]
[White "Ahmad, Khagan"]
[Black "Pavlidou, Ekaterini"]
[WhiteFideId "13431552"]
[BlackFideId "4213262"]
[WhiteElo "2209"]
[BlackElo "2126"]
[Result "1-0"]
[Round "8"]
[TimeControl "180+2"]
[Date "2023.06.20"]
[WhiteClock "0:00:12"]
[BlackClock "0:00:14"]
[Board "85"]

1. e4 {[%clk 0:03:00]}  c5 {[%clk 0:02:58]} 2. Nf3 {[%clk 0:02:57]}  Nc6 {[%clk 0:02:57]} 3. d4 {[%clk 0:02:58]}  cxd4 {[%clk 0:02:57]} 4. Nxd4 {[%clk 0:02:59]}  Nf6 {[%clk 0:02:58]} 5. Nc3 {[%clk 0:02:58]}  e5 {[%clk 0:02:58]} 6. Ndb5 {[%clk 0:02:53]}  d6 {[%clk 0:02:58]} 7. Bg5 {[%clk 0:02:47]}  a6 {[%clk 0:02:58]} 8. Na3 {[%clk 0:02:46]}  b5 {[%clk 0:02:57]} 9. Nd5 {[%clk 0:02:42]}  Be7 {[%clk 0:02:57]} 10. Bxf6 {[%clk 0:02:39]}  Bxf6 {[%clk 0:02:57]} 11. c4 {[%clk 0:02:40]}  b4 {[%clk 0:02:56]} 12. Nc2 {[%clk 0:02:30]}  a5 {[%clk 0:02:56]} 13. Be2 {[%clk 0:02:05]}  Be6 {[%clk 0:02:53]} 14. O-O {[%clk 0:02:04]}  Bg5 {[%clk 0:02:52]} 15. Nce3 {[%clk 0:01:39]}  O-O {[%clk 0:02:34]} 16. g3 {[%clk 0:01:32]}  Bxe3 {[%clk 0:02:32]} 17. fxe3 {[%clk 0:01:25]}  Qg5 {[%clk 0:02:25]} 18. Qd2 {[%clk 0:01:17]}  Bxd5 {[%clk 0:02:23]} 19. exd5 {[%clk 0:01:14]}  Ne7 {[%clk 0:02:21]} 20. Bd3 {[%clk 0:01:10]}  f5 {[%clk 0:02:20]} 21. c5 {[%clk 0:01:04]}  dxc5 {[%clk 0:02:01]} 22. d6 {[%clk 0:01:00]}  Ng6 {[%clk 0:01:57]} 23. Rxf5 {[%clk 0:00:48]}  Rxf5 {[%clk 0:01:52]} 24. Bxf5 {[%clk 0:00:49]}  Rf8 {[%clk 0:01:43]} 25. Bxg6 {[%clk 0:00:45]}  hxg6 {[%clk 0:01:31]} 26. d7 {[%clk 0:00:41]}  e4 {[%clk 0:01:23]} 27. Rd1 {[%clk 0:00:37]}  Rd8 {[%clk 0:01:21]} 28. b3 {[%clk 0:00:29]}  Qe7 {[%clk 0:01:17]} 29. Qd5+ {[%clk 0:00:27]}  Qf7 {[%clk 0:01:11]} 30. Kg2 {[%clk 0:00:20]}  Qxd5 {[%clk 0:01:10]} 31. Rxd5 {[%clk 0:00:21]}  a4 {[%clk 0:01:04]} 32. Kh3 {[%clk 0:00:13]}  Kf7 {[%clk 0:00:44]} 33. Rxc5 {[%clk 0:00:11]}  axb3 {[%clk 0:00:42]} 34. axb3 {[%clk 0:00:11]}  Rxd7 {[%clk 0:00:42]} 35. Rc4 {[%clk 0:00:11]}  Rd3 {[%clk 0:00:42]} 36. Rxb4 {[%clk 0:00:10]}  Rxe3 {[%clk 0:00:42]} 37. Kg4 {[%clk 0:00:11]}  Ke6 {[%clk 0:00:42]} 38. Kf4 {[%clk 0:00:10]}  Rc3 {[%clk 0:00:39]} 39. Rxe4+ {[%clk 0:00:09]}  Kf6 {[%clk 0:00:39]} 40. b4 {[%clk 0:00:10]}  Rc2 {[%clk 0:00:39]} 41. h4 {[%clk 0:00:10]}  Rb2 {[%clk 0:00:39]} 42. Rc4 {[%clk 0:00:09]}  Kf7 {[%clk 0:00:38]} 43. Kg5 {[%clk 0:00:09]}  Rb3 {[%clk 0:00:33]} 44. g4 {[%clk 0:00:09]}  Rg3 {[%clk 0:00:32]} 45. Rf4+ {[%clk 0:00:09]}  Kg8 {[%clk 0:00:31]} 46. Kxg6 {[%clk 0:00:10]}  Rb3 {[%clk 0:00:30]} 47. Rc4 {[%clk 0:00:10]}  Kf8 {[%clk 0:00:30]} 48. g5 {[%clk 0:00:09]}  Rh3 {[%clk 0:00:29]} 49. Rc8+ {[%clk 0:00:08]}  Ke7 {[%clk 0:00:29]} 50. Kxg7 {[%clk 0:00:09]}  Rxh4 {[%clk 0:00:30]} 51. Rb8 {[%clk 0:00:07]}  Rg4 {[%clk 0:00:30]} 52. g6 {[%clk 0:00:08]}  Rh4 {[%clk 0:00:28]} 53. Rb5 {[%clk 0:00:08]}  Rh1 {[%clk 0:00:27]} 54. Kg8 {[%clk 0:00:08]}  Kf6 {[%clk 0:00:26]} 55. g7 {[%clk 0:00:08]}  Rd1 {[%clk 0:00:26]} 56. Rb6+ {[%clk 0:00:08]}  Ke7 {[%clk 0:00:26]} 57. Rh6 {[%clk 0:00:08]}  Rd8+ {[%clk 0:00:21]} 58. Kh7 {[%clk 0:00:08]}  Kf7 {[%clk 0:00:21]} 59. Rh1 {[%clk 0:00:08]}  Rd7 {[%clk 0:00:19]} 60. g8=Q+ {[%clk 0:00:09]}  Kf6+ {[%clk 0:00:18]} 61. Kh6 {[%clk 0:00:09]}  Rd4 {[%clk 0:00:17]} 62. Qg7+ {[%clk 0:00:09]}  Kf5 {[%clk 0:00:17]} 63. Qxd4 {[%clk 0:00:10]}  Ke6 {[%clk 0:00:18]} 64. Rf1 {[%clk 0:00:10]}  Ke7 {[%clk 0:00:16]} 65. Rf6 {[%clk 0:00:11]}  Ke8 {[%clk 0:00:14]} 66. b5 {[%clk 0:00:12]} 1-0


[Site "https://www.chess.com"]

[Event "Titled Tuesday Blitz June 20 Early 2023"]
[White "Jakubowski, Krzysztof"]
[Black "MAHanif"]
[WhiteFideId "1112848"]
[WhiteElo "2359"]
[BlackElo "2339"]
[Result "1-0"]
[Round "8"]
[TimeControl "180+2"]
[Date "2023.06.20"]
[WhiteClock "0:01:07"]
[BlackClock "0:01:17"]
[Board "87"]

1. e4 {[%clk 0:03:00]}  c6 {[%clk 0:02:55]} 2. Nf3 {[%clk 0:02:57]}  d5 {[%clk 0:02:56]} 3. d3 {[%clk 0:02:57]}  dxe4 {[%clk 0:02:55]} 4. dxe4 {[%clk 0:02:57]}  Qxd1+ {[%clk 0:02:54]} 5. Kxd1 {[%clk 0:02:58]}  Bg4 {[%clk 0:02:54]} 6. Be2 {[%clk 0:02:58]}  Nd7 {[%clk 0:02:53]} 7. Ne1 {[%clk 0:02:58]}  Bxe2+ {[%clk 0:02:50]} 8. Kxe2 {[%clk 0:02:59]}  O-O-O {[%clk 0:02:50]} 9. Be3 {[%clk 0:02:57]}  e5 {[%clk 0:02:47]} 10. Nd3 {[%clk 0:02:56]}  f6 {[%clk 0:02:46]} 11. a4 {[%clk 0:02:54]}  c5 {[%clk 0:02:39]} 12. Nd2 {[%clk 0:02:52]}  b6 {[%clk 0:02:36]} 13. a5 {[%clk 0:02:33]}  b5 {[%clk 0:02:35]} 14. c4 {[%clk 0:02:32]}  b4 {[%clk 0:02:33]} 15. Nb3 {[%clk 0:02:30]}  Ne7 {[%clk 0:01:59]} 16. Ndxc5 {[%clk 0:02:04]}  Nxc5 {[%clk 0:01:56]} 17. Nxc5 {[%clk 0:01:56]}  Nc6 {[%clk 0:01:57]} 18. Ne6 {[%clk 0:01:41]}  Rd7 {[%clk 0:01:54]} 19. a6 {[%clk 0:01:35]}  Be7 {[%clk 0:01:49]} 20. Rhd1 {[%clk 0:01:33]}  g6 {[%clk 0:01:41]} 21. Rd5 {[%clk 0:01:28]}  Rd6 {[%clk 0:01:37]} 22. Nc5 {[%clk 0:01:25]}  Rxd5 {[%clk 0:01:32]} 23. cxd5 {[%clk 0:01:24]}  Nd4+ {[%clk 0:01:33]} 24. Bxd4 {[%clk 0:01:24]}  exd4 {[%clk 0:01:33]} 25. Ne6 {[%clk 0:01:22]}  Bd6 {[%clk 0:01:29]} 26. Rc1+ {[%clk 0:01:18]}  Kd7 {[%clk 0:01:28]} 27. Nxd4 {[%clk 0:01:10]}  Be5 {[%clk 0:01:17]} 28. Kd3 {[%clk 0:01:07]} 1-0


[Site "https://www.chess.com"]